fUSD/lending_fUSD_20250320
["ID","MTS","AMOUNT","RATE_DAILY","PERIOD"]
[356449685,1742462074295,4249.72720126,0.00013699,2]
[356449686,1742462074320,898.29279874,0.00013699,2]
[356449687,1742462074720,5148.02,0.00013699,2]
[356449688,1742462075131,5148.02,0.00013699,2]
[356449689,1742462075842,5148.02,0.00013699,2]
[356449690,1742462076564,5148.02,0.00013699,2]
[356449691,1742462077110,3509.62720126,0.00013699,2]
[356449692,1742462077136,1638.39279874,0.00013699,2]
[356449693,1742462077470,5148.02,0.00013699,2]
[356449694,1742462077830,5148.02,0.00013699,2]
[356449695,1742462078781,5148.02,0.00013699,2]
[356449696,1742462079214,5148.02,0.00013699,2]
[356449697,1742462079583,1930.57720126,0.00013699,2]
[356449698,1742462079608,3217.44279874,0.00013699,2]
[356449699,1742462080080,5148.02,0.00013699,2]
[356449700,1742462080483,5148.02,0.00013699,2]
[356449701,1742462080811,5148.02,0.00013699,2]
[356449702,1742462081170,5148.02,0.00013699,2]
[356449703,1742462081500,1040.47720126,0.00013699,2]
[356449704,1742462081525,4107.54279874,0.00013699,2]
[356449705,1742462081833,5148.16192156,0.00013699,2]
[356449712,1742462710711,16028.24321509,0.000154,2]
[356449713,1742462716409,24716.05206461,0.0002,2]
[356449714,1742462726070,988.32600166,0.000108,2]
[356449715,1742462728475,8673.98637277,0.00011,2]
[356449716,1742462750444,-181.19713606,0.0002,2]
[356449717,1742462753556,-202.45,0.0002,2]
[356449719,1742462790850,1966.44598465,0.00015,2]
[356449720,1742462827885,1517.64,0.000153,2]
[356449721,1742462832000,7654.33320966,0.00015,2]
[356449722,1742462835529,18201.64293102,0.00015,2]
[356449723,1742462842138,5135.00998739,0.0001305,2]
[356449724,1742462842564,249.84533941,0.000101,2]
[356449725,1742462849131,478.70313746,0.0001,2]
[356449726,1742462860540,4533.4660431,0.00016,2]
[356449727,1742462873750,600.60099288,0.00013,2]
[356449728,1742462873776,3652.04224319,0.00013,2]
[356449729,1742462880722,46347.95775681,0.0001,2]
[356449730,1742462880747,50000.0,0.0001,2]
[356449731,1742462880773,50000.0,0.0001,2]
[356449732,1742462880798,50000.0,0.0001,2]
[356449733,1742462880825,50000.0,0.0001,2]
[356449734,1742462880852,50000.0,0.0001,2]
[356449735,1742462880879,50000.0,0.0001,2]
[356449736,1742462880908,50000.0,0.0001,2]
[356449737,1742462880940,66692.35939982,0.0001,2]
[356449738,1742462880966,50000.0,0.0001,2]
[356449739,1742462881420,-231.84528,0.0001,2]
[356449742,1742462916298,-153.0,9.999e-05,2]
[356449751,1742462922287,-90.63076648,9.999e-05,2]
[356449752,1742462922309,-62.36923352,9.999e-05,2]
[356449753,1742462926898,-96.90400993,9.999e-05,2]
[356449754,1742462926920,-56.09599007,9.999e-05,2]
[356449773,1742462996191,-228.38581252,9.999e-05,2]
[356449774,1742462996212,-22.15310148,9.999e-05,2]
[356449775,1742462999264,-159.7964,9.999e-05,2]
[356449778,1742463009426,-150.0,9.999e-05,2]
[356449779,1742463009449,-27.5334,9.999e-05,2]
[356449780,1742463014239,-13.29713733,9.999e-05,2]
[356449781,1742463014263,-136.70286267,0.0001,2]
[356449792,1742463031495,-681.5968828,0.0001,2]
[356449793,1742463031512,-1410.54215506,0.0001,2]
[356449794,1742463031609,-786.44211909,0.0001,2]
[356449795,1742463031621,-1148.617287,0.0001,2]
[356449796,1742463031721,-5480.54146544,0.0001,2]
[356449797,1742463031779,-541.345,0.0001,2]
[356449798,1742463031791,-14160.51205207,0.0001,2]
[356449799,1742463031837,-1073.51207392,0.0001,2]
[356449828,1742463037355,-199.13726181,9.999e-05,2]
[356449829,1742463037365,-170.54153654,9.999e-05,2]
[356449830,1742463037375,-5891.70379422,0.0001,2]
[356449831,1742463037412,-1403.73,0.0001,2]
[356449832,1742463037424,-315.10847764,0.0001,2]
[356449833,1742463037472,-2300.80000002,0.0001,2]
[356449834,1742463037483,-1674.39428557,0.0001,2]
[356449835,1742463037513,-246559.75195934,0.0001,2]
[356449836,1742463037530,-566.26057689,0.0001,2]
[356449837,1742463037541,-44907.62872966,0.0001,2]
[356449838,1742463037553,-476.81295156,0.0001,2]
[356449839,1742463037565,-311.184893,0.0001,2]
[356449845,1742463039529,-40409.331215,0.0001,2]
[356449846,1742463039641,-1588046.98783759,0.0001,2]
[356449847,1742463039651,-309.11933545,0.00010036,2]
[356449848,1742463039662,-1723.39287829,0.00010036,2]
[356449849,1742463039672,-1211.44135529,0.00010136,2]
[356449850,1742463039682,-309.11933543,0.00010691,2]
[356449851,1742463039692,-257.98583862,0.000107,2]
[356449852,1742463039702,-350.0,0.00010999,2]
[356449853,1742463039712,-255.0,0.00010999,2]
[356449854,1742463039722,-63282.30646579,0.00011099,2]
[356449855,1742463039734,-63282.30646577,0.00011099,2]
[356449856,1742463039746,-63282.30646577,0.00011099,2]
[356449857,1742463039756,-63282.30646577,0.00011099,2]
[356449858,1742463039765,-63282.30646577,0.00011099,2]
[356449859,1742463039774,-63282.30646577,0.00011127,2]
[356449860,1742463039784,-309.11933543,0.00011345,2]
[356449861,1742463039793,-63282.30646577,0.00011345,2]
[356449862,1742463039802,-63282.30646577,0.00011564,2]
[356449863,1742463039811,-1872.57,0.000117,2]
[356449864,1742463039822,-63282.30646577,0.00011782,2]
[356449865,1742463039831,-160.28561989,0.00011973,2]
[356449866,1742463039843,-160.28561989,0.00011973,2]
[356449867,1742463039852,-160.08605313,0.00011973,2]
[356449868,1742463039865,-152.27145588,0.00011973,2]
[356449869,1742463039875,-200.35718426,0.00011973,2]
[356449870,1742463039885,-160.50969293,0.00011973,2]
[356449871,1742463039895,-621.19551613,0.00011973,2]
[356449872,1742463039904,-155.21468823,0.00011973,2]
[356449873,1742463039914,-151.8659355,0.00012,2]
[356449874,1742463039923,-5119064.33789629,0.00012,2]
[356449875,1742463039936,-1047.30655743,0.00012,2]
[356449950,1742463043143,-1176.061256,0.00012,2]
[356449952,1742463043158,-36153.75774636,0.00012,2]
[356450196,1742463045600,-2939.63944018,0.00012,2]
[356450198,1742463045612,-6044.43828087,0.00012,2]
[356450203,1742463045659,-987.4,0.00012,2]
[356450206,1742463045671,-867.194902,0.00012,2]
[356450211,1742463045717,-400.0,0.00012,2]
[356450216,1742463045884,-237681.0703424,0.00012,2]
[356450218,1742463045895,-711.6719425,0.00012,2]
[356450220,1742463045906,-1090.64408192,0.00012,2]
[356450224,1742463045941,-6104.03841251,0.00012,2]
[356450231,1742463046000,-4842.09388937,0.00012,2]
[356450233,1742463046011,-1627.2,0.00012,2]
[356450235,1742463046023,-1433.77047196,0.00012,2]
[356450237,1742463046035,-7809.03247051,0.00012,2]
[356450241,1742463046059,-541.10012109,0.00012,2]
[356450247,1742463046116,-857176.03970306,0.00012,2]
[356450249,1742463046128,-13181.43845889,0.00012,2]
[356450255,1742463046172,-576.70999178,0.00012,2]
[356450257,1742463046184,-1104.89183922,0.00012,2]
[356450259,1742463046195,-432.00902886,0.00012,2]
[356450584,1742463056781,-382.2592,0.00012,2]
[356450595,1742463547062,-240.47916764,0.0001172,2]
[356450596,1742463547084,-572.65443236,0.000118,2]
[356450597,1742463582473,153.9,9.052e-05,2]
[356450598,1742463594670,-240.47916763,0.0001174,2]
[356450599,1742463594692,-141.78003237,0.000118,2]
[356450605,1742463880097,1434.92,8.957e-05,2]
[356450611,1742463998627,-150.0,0.00010872,2]
[356450656,1742464231733,-526.6,0.00010738,2]
[356450657,1742464231743,-228.76315862,0.00010792,2]
[356450658,1742464231755,-553.5323311,0.00010792,2]
[356450659,1742464231767,-430.86617395,0.00010792,2]
[356450660,1742464231792,-1593.29468835,0.00010792,2]
[356450661,1742464231803,-702.30503053,0.00010792,2]
[356450662,1742464231906,-256.25013672,0.00010792,2]
[356450663,1742464231919,-404.96943929,0.00010792,2]
[356450664,1742464231967,-802.42131542,0.00010792,2]
[356450673,1742464237576,-628.475,0.00010792,2]
[356450674,1742464237635,-2356.70560517,0.00010792,2]
[356450675,1742464237647,-1740.04255694,0.00010792,2]
[356450676,1742464237659,-734.49950702,0.00010792,2]
[356450677,1742464237671,-412.945,0.00010792,2]
[356450678,1742464237762,-9.41717305,0.00010792,2]
[356450679,1742464237774,-3993.2,0.00010792,2]
[356450680,1742464237786,-1668.63504739,0.00010792,2]
[356450681,1742464237817,-465.16440218,0.00010792,2]
[356450789,1742464239912,-198.71718406,0.00010792,2]
[356450790,1742464239924,-3403.57727759,0.00010792,2]
[356450791,1742464239937,-3316.21897262,0.00010792,2]
[356450792,1742464239946,-150.0,0.00010805,2]
[356450793,1742464239956,-850.0,0.00010872,2]
[356450794,1742464239966,-301.02,0.00010872,2]
[356450795,1742464239976,-2118.05511918,0.00010872,2]
[356450796,1742464239986,-212.85,0.00010926,2]
[356450797,1742464239997,-150.0,0.00010926,2]
[356450798,1742464240006,-2000.0,0.00010952,2]
[356450799,1742464240016,-166.34,0.00010952,2]
[356450800,1742464240025,-268.09,0.00010956,2]
[356450801,1742464240035,-648.77,0.00010985,2]
[356450802,1742464240045,-1064.68,0.00011076,2]
[356450803,1742464240055,-159.43,0.00011171,2]
[356450804,1742464240067,-1434.92,0.00011221,2]
[356450805,1742464240076,-150.0,0.00011265,2]
[356450806,1742464240086,-211.18,0.00011345,2]
[356450807,1742464240096,-7861.24,0.000117,2]
[356450808,1742464240105,-158.82585471,0.000118,2]
[356450809,1742464240115,-287.1662902,0.000118,2]
[356450810,1742464240124,-309.11933543,0.000118,2]
[356450812,1742464240134,-6328.23064664,0.000118,2]
[356450814,1742464240143,-864.18586116,0.000118,2]
[356450815,1742464240153,-1871.69115107,0.000118,2]
[356450816,1742464240165,-6328.23064657,0.00011811,2]
[356450817,1742464240175,-287.16629013,0.00011814,2]
[356450818,1742464240184,-864.1858611,0.00011817,2]
[356450819,1742464240194,-1871.69115102,0.0001182,2]
[356450820,1742464240204,-6328.23064657,0.00011822,2]
[356450821,1742464240214,-287.16629013,0.00011829,2]
[356450822,1742464240223,-718.38933973,0.0001183,2]
[356450823,1742464240233,-158.8258547,0.00011833,2]
[356450824,1742464240243,-6328.23064657,0.00011833,2]
[356450825,1742464240253,-864.1858611,0.00011833,2]
[356450826,1742464240263,-1871.69115102,0.0001184,2]
[356450827,1742464240272,-287.16629013,0.00011843,2]
[356450828,1742464240282,-6328.23064657,0.00011844,2]
[356450829,1742464240292,-864.1858611,0.0001185,2]
[356450830,1742464240301,-6328.23064657,0.00011856,2]
[356450831,1742464240311,-287.16629013,0.00011857,2]
[356450832,1742464240320,-1871.69115102,0.0001186,2]
[356450833,1742464240331,-528.5,0.00011861,2]
[356450834,1742464240340,-158.8258547,0.00011867,2]
[356450835,1742464240350,-6328.23064657,0.00011867,2]
[356450836,1742464240360,-864.1858611,0.00011867,2]
[356450837,1742464240369,-287.16629013,0.00011871,2]
[356450838,1742464240380,-150.0,0.00011872,2]
[356450839,1742464240390,-350.0,0.00011872,2]
[356450840,1742464240399,-152.27145606,0.00011873,2]
[356450841,1742464240410,-500.0,0.00011873,2]
[356450842,1742464240420,-155.27669431,0.00011873,2]
[356450843,1742464240430,-6328.23064657,0.00011878,2]
[356450844,1742464240440,-8818.70405228,0.0001188,2]
[356450845,1742464240449,-1871.69115102,0.0001188,2]
[356450846,1742464240459,-287.16629013,0.00011886,2]
[356450847,1742464240474,-6328.23064657,0.00011889,2]
[356450848,1742464240482,-150.0,0.00011899,2]
[356450849,1742464240492,-234.65072645,0.00011899,2]
[356450850,1742464240502,-158.8258547,0.000119,2]
[356450852,1742464240513,-1160375.68434368,0.000119,2]
[356450853,1742464240523,-497.1928592,0.000119,2]
[356450854,1742464240533,-215.47579404,0.000119,2]
[356450855,1742464240545,-287.16629013,0.000119,2]
[356450856,1742464240557,-158.36522293,0.000119,2]
[356450857,1742464240567,-272.72842222,0.000119,2]
[356450858,1742464240577,-6328.23064657,0.000119,2]
[356450859,1742464240588,-2059.82334829,0.000119,2]
[356450860,1742464240598,-165.30368056,0.000119,2]
[356450861,1742464240608,-350.0,0.00011959,2]
[356450862,1742464240618,-150.0,0.00011959,2]
[356450863,1742464240629,-350.0,0.00011959,2]
[356450864,1742464240639,-12899.0,0.00011973,2]
[356450865,1742464240649,-500.0,0.00011973,2]
[356450866,1742464240658,-155.27681377,0.00011973,2]
[356450867,1742464240667,-152.27153539,0.00011973,2]
[356450868,1742464240678,-152.27033914,0.00011973,2]
[356450869,1742464240688,-160.28574739,0.00011973,2]
[356450870,1742464240697,-151.26955381,0.00011973,2]
[356450871,1742464240707,-160.28561989,0.00011973,2]
[356450872,1742464240717,-152.28664675,0.00011973,2]
[356450873,1742464240726,-264.47147635,0.00011973,2]
[356450874,1742464240735,-178.853,0.00011999,2]
[356450875,1742464240745,-688.93294472,0.00011999,2]
[356450876,1742464240755,-1711.83,0.00011999,2]
[356450877,1742464240766,-207.86257328,0.00011999,3]
[356450878,1742464240776,-3636513.57707526,0.00012,2]
[356450879,1742464240789,-577.31555081,0.00012,2]
[356450880,1742464240804,-1095.6062822,0.00012,2]
[356450881,1742464240817,-4540.28453403,0.00012,2]
[356450882,1742464240833,-7648.94644887,0.00012,2]
[356450883,1742464240845,-389.19649744,0.00012,2]
[356450884,1742464240856,-3999.64712997,0.00012,2]
[356450885,1742464241034,-1469.6911387,0.00012,2]
[356450886,1742464241047,-1439.07083368,0.00012,2]
[356450900,1742464242803,-68483.83973848,0.00012,2]
[356450913,1742464243894,-0.15077432,0.00012,2]
[356450914,1742464243911,-766.17049255,0.00012,2]
[356450915,1742464243923,-924.09358818,0.00012,2]
[356450916,1742464243935,-282520.0,0.00012,2]
[356450917,1742464243947,-250.5245,0.00012,2]
[356450918,1742464243960,-1299.35355791,0.00012,2]
[356450920,1742464245837,-864.1858611,0.00011883,2]
[356450921,1742464245847,-1871.69115102,0.000119,2]
[356450922,1742464245858,-2834.57752756,0.00012,2]
[356450923,1742464245870,-3444.58102209,0.00012,2]
[356450924,1742464245949,-1298.10342144,0.00012,2]
[356450925,1742464245961,-9196.5,0.00012,2]
[356450926,1742464246006,-897.58999998,0.00012,2]
[356450929,1742464262529,-181.19713606,0.000119,2]
[356450930,1742464581556,1061.48468,0.00012,6]
[356450931,1742464900813,884.57056,0.00012,6]
[356450932,1742464933137,2053.94476,0.000135,4]
[356450945,1742465431875,-153.9,0.00010539,2]
[356450946,1742465431885,-1291.42,0.00011033,2]
[356450947,1742465431895,-748.69,0.000117,2]
[356450948,1742465431905,-434.38600223,0.00011728,2]
[356450949,1742465431915,-178.853,0.0001176,2]
[356450950,1742465431925,-1917.682,0.0001176,2]
[356450951,1742465431937,-300.0,0.00011899,2]
[356450952,1742465431950,-682.98872504,0.000119,2]
[356450953,1742465431959,-181.81894816,0.000119,2]
[356450954,1742465431970,-158.36522292,0.000119,2]
[356450955,1742465431980,-331.46190614,0.000119,2]
[356450956,1742465431990,-150.0,0.00011972,2]
[356450957,1742465432000,-503.31838654,0.00011973,2]
[356450958,1742465432010,-152.88729395,0.00011973,2]
[356450959,1742465432021,-152.27153539,0.00011973,2]
[356450960,1742465432031,-264.47147635,0.00011973,2]
[356450961,1742465432042,-256.03274582,0.00011973,2]
[356450962,1742465432054,-243.96725418,0.00011973,2]
[356450963,1742465432063,-155.27681377,0.00011973,2]
[356450964,1742465432073,-152.28664675,0.00011973,2]
[356450965,1742465432082,-152.27033914,0.00011973,2]
[356450966,1742465432092,-160.28574739,0.00011973,2]
[356450967,1742465432102,-151.62085291,0.00011973,2]
[356450968,1742465432112,-151.26955381,0.00011973,2]
[356450969,1742465432123,-160.28561989,0.00011973,2]
[356450970,1742465432132,-160.46074866,0.00011973,2]
[356450971,1742465432142,-500.0,0.00011973,2]
[356450972,1742465432152,-155.44922671,0.00011973,2]
[356450973,1742465432161,-151.39724455,0.00011973,2]
[356450974,1742465432171,-688.93294472,0.00011999,2]
[356450975,1742465432180,-207.86257328,0.00011999,3]
[356450976,1742465432190,-230.93375875,0.00011999,2]
[356450977,1742465432199,-179.03707561,0.00011999,2]
[356450979,1742465432208,-82240.85264727,0.00012,2]
[356450980,1742465432224,-296347.30864709,0.00012,2]
[356450981,1742465432237,-159252.32276329,0.00012,2]
[356450982,1742465432248,-508.78328157,0.00012,2]
[356450983,1742465432260,-382.12875675,0.00012,2]
[356450984,1742465432272,-1209.496,0.00012,2]
[356450985,1742465432283,-670.41993916,0.00012,2]
[356450986,1742465432295,-1060.71101525,0.00012,2]
[356450987,1742465432306,-269.355,0.00012,2]
[356450993,1742465437799,-196068.07714428,0.00012,2]
[356450994,1742465437812,-14346.80758099,0.00012,2]
[356450995,1742465437958,-3998.5215,0.00012,2]
[356450996,1742465437970,-7996.9936,0.00012,2]
[356450997,1742465437982,-37827.55062327,0.00012,2]
[356450998,1742465438052,-51690.77906025,0.00012,2]
[356451001,1742465439940,-660.07913423,0.00012,2]
[356451002,1742465439952,-475.8703,0.00012,2]
[356451003,1742465440101,-904.02999295,0.00012,2]
[356451004,1742465440113,-3641149.47332575,0.00012,2]
[356451005,1742465440154,-4403.8120149,0.00012,2]
[356451006,1742465440166,-1746.3324078,0.00012,2]
[356451007,1742465440179,-5552.41323589,0.00012,2]
[356451008,1742465440191,-11148.5019612,0.00012,2]
[356451009,1742465440212,-48532.69013396,0.00012,2]
[356451010,1742465440223,-2267.16292566,0.00012,2]
[356451011,1742465440320,-2299.19999989,0.00012,2]
[356451012,1742465440373,-718.18097749,0.00012,2]
[356451241,1742465442952,-636.96867909,0.00012,2]
[356451247,1742465443006,-296.13443335,0.00012,2]
[356451249,1742465443017,-83787.26407208,0.00012,2]
[356451253,1742465443060,-109916.52358184,0.00012,2]
[356451255,1742465443072,-758.57759602,0.00012,2]
[356451260,1742465443114,-638.55,0.00012,2]
[356451305,1742465443550,-394.0571819,0.00012,2]
[356451454,1742465446032,-268.987887,0.00012,2]
[356451455,1742465446043,-318.8803487,0.00012,2]
[356451456,1742465446054,-1302.27405397,0.00012,2]
[356451457,1742465446066,-564.88228283,0.00012,2]
[356451458,1742465446140,-6027.00000009,0.00012,2]
[356451498,1742465835819,3892.42,0.00021,120]
[356451506,1742466334057,150.0,9.71e-05,2]
[356451507,1742466336598,2114.42856325,8e-05,2]
[356451508,1742466366423,3585.81109461,8e-05,2]
[356451509,1742466394251,-181.19713606,0.00010646,2]
[356451510,1742466463906,-1045.64286394,0.00010646,2]
[356451511,1742466463933,-339.75527314,0.00011018,2]
[356451512,1742466463959,-167.99,0.00011118,2]
[356451513,1742466463985,-1000.0,0.00011155,2]
[356451514,1742466464015,-21346.61186292,0.00011484,2]
[356451515,1742466475223,9862.76684565,8e-05,2]
[356451516,1742466475251,13448.57794026,8e-05,2]
[356451517,1742466475282,13448.57794026,8e-05,2]
[356451518,1742466475309,13448.57794026,8e-05,2]
[356451519,1742466475340,13448.57794026,8e-05,2]
[356451520,1742466475368,1729.91291996,8e-05,2]
[356451540,1742466542108,-197.0,9.999e-05,2]
[356451557,1742466602551,-197.0,9.948e-05,2]
[356451570,1742466632069,-300.0,9.999e-05,2]
[356451571,1742466632080,-150.0,9.999e-05,2]
[356451572,1742466632089,-399.88006928,9.999e-05,2]
[356451573,1742466632100,-194.09057473,9.999e-05,2]
[356451574,1742466632109,-500.0,9.999e-05,2]
[356451575,1742466632119,-255.39114254,9.999e-05,2]
[356451576,1742466632132,-197.63821354,0.0001,2]
[356451577,1742466632147,-922.539993,0.0001,2]
[356451578,1742466632159,-343.28965258,0.0001,2]
[356451579,1742466632177,-1000.0,0.0001,2]
[356451580,1742466632190,-759.66649127,0.0001,2]
[356451581,1742466632237,-967.42077249,0.0001,2]
[356451582,1742466632249,-334.60004339,0.0001,2]
[356451583,1742466632260,-706.92122751,0.0001,2]
[356451584,1742466632294,-1713.712,0.0001,2]
[356451586,1742466632308,-644.25310949,0.0001,2]
[356451587,1742466632321,-70766.46538045,0.0001,2]
[356451588,1742466632333,-1305.0,0.0001,2]
[356452147,1742466637966,-1344.92339672,9.95e-05,2]
[356452149,1742466637978,-1477.22,9.95e-05,2]
[356452154,1742466638019,-210.55164128,9.95e-05,2]
[356452156,1742466638028,-8545.87552783,0.0001,2]
[356452167,1742466638128,-635.54576736,0.0001,2]
[356452170,1742466638143,-3099.6033519,0.0001,2]
[356452172,1742466638154,-1007.95968956,0.0001,2]
[356452174,1742466638165,-609.59329296,0.0001,2]
[356452177,1742466638183,-11914.53525078,0.0001,2]
[356452179,1742466638192,-500.0,0.0001,2]
[356452181,1742466638202,-202.07,0.00010935,2]
[356452183,1742466638211,-179.0,0.00010999,2]
[356452185,1742466638220,-255.0,0.00010999,2]
[356452186,1742466638229,-1161.2,0.00011022,2]
[356452188,1742466638243,-200.0,0.00011214,2]
[356452190,1742466638252,-1707.83421551,0.00011484,2]
[356452193,1742466638263,-845.55392157,0.00011484,2]
[356452194,1742466638274,-169.10007405,0.00011515,2]
[356452197,1742466638285,-265.28592818,0.00011515,2]
[356452199,1742466638295,-897.81407187,0.0001164,2]
[356452201,1742466638306,-540.68,0.0001164,2]
[356452203,1742466638323,-14.89422123,0.0001164,2]
[356452205,1742466638332,-374.34,0.000117,2]
[356452207,1742466638342,-192.11715444,0.00011779,2]
[356452209,1742466638351,-209.36419188,0.00011779,2]
[356452211,1742466638360,-2613.32443245,0.0001178,2]
[356452213,1742466638371,-3977.76,0.0001178,2]
[356452215,1742466638382,-713.80528119,0.0001178,2]
[356452217,1742466638395,-18912.81578636,0.0001178,2]
[356452219,1742466638404,-1000.0,0.0001178,2]
[356452220,1742466638413,-1912.4786,0.0001178,2]
[356452222,1742466638423,-8234.27500952,0.0001178,2]
[356452224,1742466638434,-16317.18165786,0.0001178,2]
[356452226,1742466638448,-425.81706451,0.0001178,2]
[356452252,1742466640058,-41125.87806811,0.0001178,2]
[356452253,1742466640068,-181.7523,0.0001178,2]
[356452254,1742466640077,-305.3513,0.0001178,2]
[356452255,1742466640087,-161.0038,0.0001178,2]
[356452256,1742466640098,-77720.7201,0.0001178,2]
[356452257,1742466640108,-456.9189,0.0001178,2]
[356452258,1742466640118,-2500.0,0.0001178,2]
[356452259,1742466640127,-217.10590191,0.000118,2]
[356452260,1742466640138,-217.1059019,0.00011811,2]
[356452261,1742466640148,-217.1059019,0.00011822,2]
[356452262,1742466640158,-217.1059019,0.00011833,2]
[356452263,1742466640168,-217.1059019,0.00011844,2]
[356452264,1742466640179,-217.1059019,0.00011856,2]
[356452265,1742466640188,-217.1059019,0.00011867,2]
[356452266,1742466640198,-217.1059019,0.00011878,2]
[356452267,1742466640208,-266965.29838658,0.0001188,2]
[356452268,1742466640218,-765.22302,0.0001188,6]
[356452269,1742466640229,-217.1059019,0.00011889,2]
[356452270,1742466640241,-915.7871,0.000119,2]
[356452271,1742466640251,-26370.0584,0.000119,2]
[356452272,1742466640260,-1235.827,0.000119,2]
[356452273,1742466640271,-3798.104,0.000119,2]
[356452274,1742466640280,-217871.1567,0.000119,2]
[356452275,1742466640290,-1815.4099,0.000119,2]
[356452276,1742466640299,-217.1059019,0.000119,2]
[356452277,1742466640309,-220.9746041,0.000119,2]
[356452278,1742466640319,-1540.13358966,0.000119,2]
[356452279,1742466640328,-158.36522292,0.000119,2]
[356452280,1742466640338,-7220.0,0.00011945,2]
[356452281,1742466640347,-5462.0,0.00011945,2]
[356452282,1742466640357,-2154.0,0.00011973,2]
[356452283,1742466640367,-502.44355117,0.00011999,2]
[356452284,1742466640377,-2979532.0083642,0.00012,2]
[356452285,1742466640501,-645.85735123,0.00012,2]
[356452286,1742466640513,-10829.53138364,0.00012,2]
[356452287,1742466640525,-54699.664898,0.00012,2]
[356452288,1742466640536,-278.55980153,0.00012,2]
[356452289,1742466640552,-397.745,0.00012,2]
[356452290,1742466640563,-435.22115147,0.00012,2]
[356452291,1742466640575,-92869.26866145,0.00012,2]
[356452292,1742466640590,-52101.89790073,0.00012,2]
[356452293,1742466640603,-16685.0,0.00012,2]
[356452295,1742466640617,-23141.40889679,0.00012,2]
[356452297,1742466640632,-41535.0,0.00012,2]
[356452299,1742466640644,-15825.78947726,0.00012,2]
[356452301,1742466640655,-453.8957,0.00012,2]
[356452517,1742466643124,-13729.34234825,0.00012,2]
[356452521,1742466643182,-20000.0,0.00012,2]
[356452524,1742466643196,-49800.0,0.00012,2]
[356452581,1742466644140,-5562.76725973,0.00012,2]
[356452582,1742466644155,-1200.00961913,0.00012,2]
[356452583,1742466644166,-85258.0626638,0.00012,2]
[356452584,1742466644181,-1776.20347505,0.00012,2]
[356452589,1742466646111,-28236.66,0.00012,2]
[356452590,1742466646147,-651.1875,0.00012,2]
[356452591,1742466646189,-45949.90719781,0.00012,2]
[356452592,1742466646200,-20514.72710843,0.00012,2]
[356452593,1742466646300,-255459.99999999,0.00012,2]
[356452594,1742466646313,-1982.09944847,0.00012,2]
[356452595,1742466646357,-604.14,0.00012,2]
[356452596,1742466646369,-1706.89764,0.00012,2]
[356452597,1742466646380,-305.57091467,0.00012,2]
[356452599,1742467003289,-151.72825161,0.0001158,2]
[356452602,1742467041917,-230.53094839,0.0001164,2]
[356452603,1742467090468,-230.53094839,0.0001164,2]
[356452604,1742467131989,-230.53094839,0.0001164,2]
[356452605,1742467176908,-230.53094839,0.0001164,2]
[356452607,1742467221958,-230.53094839,0.0001164,2]
[356452608,1742467268976,-230.53094839,0.0001164,2]
[356452610,1742467272658,-434.38600223,0.00011507,2]
[356452611,1742467272683,-636.67425821,0.0001164,2]
[356452612,1742467272708,-4352.9096,0.0001168,2]
[356452613,1742467272732,-500.0,0.0001168,2]
[356452614,1742467272756,-1000.0,0.0001168,2]
[356452615,1742467272780,-254.1871,0.0001168,2]
[356452616,1742467272805,-671.38292,0.0001188,6]
[356452617,1742467272829,-170.61676571,0.000119,2]
[356452618,1742467272854,-1815.4099,0.000119,2]
[356452619,1742467272878,-403.32059336,0.000119,2]
[356452620,1742467272904,-573.4064,0.000119,2]
[356452621,1742467272928,-158.36522292,0.000119,2]
[356452622,1742467272953,-220.9746041,0.000119,2]
[356452623,1742467272979,-150.0,0.00011972,2]
[356452624,1742467273003,-1508.0,0.00011973,2]
[356452625,1742467273028,-7616.0,0.00011973,2]
[356452626,1742467273052,-7220.0,0.00011973,2]
[356452627,1742467273076,-500.0,0.00011973,2]